bitfinex-derivatives/quotes_BTCF0:USTF0_20250902
["timestamp","ask_amount","ask_price","bid_price","bid_amount"]
[1756779844007,0.78512641,109530.0,109520.0,0.2060815]
[1756779844401,0.78512641,109530.0,109520.0,0.44384791]
[1756779845512,1.03512641,109530.0,109520.0,0.1688915]
[1756779845711,1.05560198,109530.0,109520.0,0.1688915]
[1756779846013,1.05560198,109530.0,109520.0,0.44201791]
[1756779847216,2.15976198,109530.0,109520.0,0.1688915]
[1756779847610,2.15976198,109530.0,109520.0,0.1456215]
[1756779847814,2.15976198,109530.0,109520.0,0.1696415]
[1756779848409,2.15976198,109530.0,109520.0,0.2050015]
[1756779848710,0.95560198,109530.0,109520.0,0.44276791]
[1756779849016,1.14560198,109530.0,109520.0,0.44276791]
[1756779849215,1.76115557,109530.0,109520.0,0.44276791]
[1756779849606,1.99892198,109530.0,109520.0,0.44276791]
[1756779850210,1.63812198,109530.0,109520.0,0.44276791]
[1756779850416,1.99892198,109530.0,109520.0,0.44276791]
[1756779850915,1.63812198,109530.0,109520.0,0.44276791]
[1756779852120,0.54703557,109530.0,109520.0,0.44276791]
[1756779852430,0.78480198,109530.0,109520.0,0.44276791]
[1756779853533,0.54703557,109530.0,109520.0,0.44283111]
[1756779854333,0.21247557,109530.0,109520.0,0.80363111]
[1756779854531,0.192,109530.0,109520.0,1.05363111]
[1756779854733,0.192,109530.0,109520.0,1.90611111]
[1756779855222,0.192,109530.0,109520.0,1.97125734]
[1756779855428,0.192,109530.0,109520.0,2.06255814]
[1756779855635,0.002,109530.0,109520.0,2.06255814]
[1756779856432,0.002,109530.0,109520.0,2.30038775]
[1756779856635,0.002,109530.0,109520.0,2.06255814]
[1756779857035,0.002,109530.0,109520.0,2.23524152]
[1756779857434,0.002,109530.0,109520.0,1.99741191]
[1756779857629,0.002,109530.0,109520.0,2.23524152]
[1756779858134,0.002,109530.0,109520.0,2.31679428]
[1756779858329,0.002,109530.0,109520.0,2.23524152]
[1756779859534,0.08191,109560.0,109550.0,0.06206]
[1756779859740,0.39191,109560.0,109550.0,0.69604961]
[1756779860236,0.39191,109560.0,109550.0,0.7980486]
[1756779860939,0.35655,109560.0,109550.0,0.7980486]
[1756779861830,0.33271,109560.0,109550.0,0.7980486]
[1756779862030,0.33571,109560.0,109550.0,0.7980486]
[1756779862240,0.33571,109560.0,109550.0,0.80729166]
[1756779862638,0.34071,109560.0,109550.0,0.80729166]
[1756779863441,0.39991,109560.0,109550.0,0.80729166]
[1756779863631,0.36455,109560.0,109550.0,0.80729166]
[1756779864642,0.39991,109560.0,109550.0,1.40696205]
[1756779864839,0.39991,109560.0,109550.0,1.64479166]
[1756779865233,0.39991,109560.0,109550.0,1.64475166]
[1756779866339,0.39991,109560.0,109550.0,0.55596205]
[1756779866638,0.39991,109560.0,109550.0,1.64495166]
[1756779866937,0.36455,109560.0,109550.0,1.65845166]
[1756779867136,0.318,109560.0,109550.0,1.65845166]
[1756779868131,0.318,109560.0,109550.0,1.42062205]
[1756779868434,0.318,109560.0,109550.0,1.65845166]
[1756779870037,0.39991,109560.0,109550.0,0.56946205]
[1756779870234,0.318,109560.0,109550.0,1.65909166]
[1756779875039,0.318,109560.0,109550.0,1.42126205]
[1756779875240,0.318,109560.0,109550.0,1.65909166]
[1756779875641,0.008,109560.0,109550.0,2.23819697]
[1756779875943,0.015,109580.0,109570.0,0.175009]
[1756779876143,0.115,109580.0,109570.0,1.53373961]
[1756779876528,0.115,109580.0,109570.0,1.53429961]
[1756779876728,0.115,109580.0,109570.0,0.68237961]
[1756779876935,0.16266,109580.0,109570.0,1.53429961]
[1756779877137,0.20442,109580.0,109570.0,1.53429961]
[1756779877541,0.20442,109580.0,109570.0,1.89509961]
[1756779877741,0.20642,109580.0,109570.0,1.96969666]
[1756779878938,0.20642,109580.0,109570.0,1.11777666]
[1756779879137,0.20642,109580.0,109570.0,1.96949666]
[1756779879834,0.16966,109580.0,109570.0,1.96949666]
[1756779880136,0.20642,109580.0,109570.0,1.11777666]
[1756779880336,0.20642,109580.0,109570.0,2.07125565]
[1756779880538,0.20642,109580.0,109570.0,0.98194604]
[1756779880736,0.10642,109580.0,109570.0,2.07105565]
[1756779881144,0.10642,109580.0,109570.0,2.07089565]
[1756779881739,0.59424961,109580.0,109570.0,0.62114604]
[1756779881946,0.95504961,109580.0,109570.0,0.22331604]
[1756779882245,0.35642,109580.0,109570.0,0.85897565]
[1756779884247,0.35642,109580.0,109570.0,1.70953565]
[1756779885746,0.10642,109580.0,109570.0,1.70953565]
[1756779886047,0.06966,109580.0,109570.0,1.70953565]
[1756779886246,0.10642,109580.0,109570.0,1.47170604]
[1756779886446,0.10642,109580.0,109570.0,1.70953565]
[1756779886645,0.022,109580.0,109570.0,1.70953565]
[1756779889733,0.05876,109580.0,109570.0,1.70953565]
[1756779890448,0.41876,109580.0,109570.0,1.47170604]
[1756779890642,0.41876,109580.0,109570.0,1.70953565]
[1756779891947,0.382,109580.0,109570.0,1.70953565]
[1756779892245,0.382,109580.0,109570.0,1.80079465]
[1756779892549,0.382,109580.0,109570.0,2.15079465]
[1756779893644,0.162,109580.0,109570.0,2.15079465]
[1756779893848,0.022,109580.0,109570.0,2.15079465]
[1756779895346,0.022,109580.0,109570.0,2.05953565]
[1756779895951,0.022,109580.0,109570.0,2.15079455]
[1756779896347,0.022,109580.0,109570.0,2.05953565]
[1756779900252,0.022,109580.0,109570.0,0.85897565]
[1756779900449,0.04581,109580.0,109570.0,0.85897565]
[1756779900649,0.022,109580.0,109570.0,1.77753565]
[1756779900848,0.022,109580.0,109570.0,2.07753565]
[1756779901344,0.022,109580.0,109570.0,2.65662416]
[1756779901749,0.022,109580.0,109570.0,2.41879455]
[1756779902258,0.39756,109630.0,109570.0,2.61959416]
[1756779902455,0.04766,109620.0,109610.0,0.44455]
[1756779902663,0.39766,109620.0,109610.0,1.90225961]
[1756779902961,0.39766,109620.0,109610.0,0.75237961]
[1756779903153,0.39766,109620.0,109610.0,1.90229961]
[1756779903358,0.35,109620.0,109610.0,1.99352531]
[1756779903557,0.41751173,109650.0,109640.0,0.04672]
[1756779903753,0.77794957,109650.0,109640.0,0.16375]
[1756779904060,0.80565784,109650.0,109640.0,0.32157961]
[1756779904260,1.05565784,109650.0,109640.0,0.32157961]
[1756779904459,1.05565784,109650.0,109640.0,0.08375]
[1756779904660,1.03522,109650.0,109640.0,0.08375]
[1756779904861,1.27304961,109650.0,109640.0,0.04672]
[1756779905159,0.08104,109640.0,109630.0,0.44423]
[1756779905353,0.41104,109640.0,109630.0,0.52423]
[1756779905858,0.03479,109630.0,109620.0,0.39545]
[1756779906157,0.40104,109630.0,109620.0,0.44185]
[1756779906559,0.40104,109630.0,109620.0,0.67967961]
[1756779907455,0.40104,109630.0,109620.0,0.68897189]
[1756779907661,0.40104,109630.0,109620.0,0.79097088]
[1756779908259,0.40104,109630.0,109620.0,0.79197088]
[1756779908459,0.40104,109630.0,109620.0,0.79797088]
[1756779909362,0.40104,109630.0,109620.0,0.7886786]
[1756779909566,0.20104,109630.0,109620.0,0.4278786]
[1756779909760,0.20104,109630.0,109620.0,0.7886786]
[1756779911166,0.08104,109630.0,109620.0,1.6372786]
[1756779911566,0.08104,109630.0,109620.0,0.55084899]
[1756779911766,0.67886961,109630.0,109620.0,0.51619899]
[1756779911967,1.03966961,109630.0,109620.0,0.15539899]
[1756779912167,1.28966961,109630.0,109620.0,0.15539899]
[1756779912462,0.97966961,109630.0,109620.0,0.15539899]
[1756779912664,0.61104,109630.0,109620.0,0.19004899]
[1756779912864,0.33104,109630.0,109620.0,0.19004899]
[1756779913066,0.38104,109630.0,109620.0,0.19004899]
[1756779913262,0.38104,109630.0,109620.0,0.4278786]
[1756779913462,0.13104,109630.0,109620.0,0.7846786]
[1756779913662,0.09625,109630.0,109620.0,0.7846786]
[1756779913861,0.09625,109630.0,109620.0,0.7836786]
[1756779914569,0.07257,109630.0,109620.0,0.7856786]
[1756779914764,0.37257,109630.0,109620.0,0.7866786]
[1756779915465,0.37257,109630.0,109620.0,1.02810345]
[1756779916767,0.35,109630.0,109620.0,1.02810345]
[1756779917067,0.35,109630.0,109620.0,1.37810345]
[1756779917266,0.35,109630.0,109620.0,1.33810345]
[1756779918869,0.35,109630.0,109620.0,1.59810345]
[1756779919370,0.38479,109630.0,109620.0,1.27810345]
[1756779919770,0.38479,109630.0,109620.0,2.12598345]
[1756779920964,0.38479,109630.0,109620.0,1.87598345]
[1756779922272,0.38479,109630.0,109620.0,0.55340899]
[1756779922273,0.43104,109630.0,109620.0,0.55340899]
[1756779922464,0.43104,109630.0,109620.0,1.40128899]
[1756779922663,0.43104,109630.0,109620.0,1.87598345]
[1756779924267,0.35,109630.0,109620.0,1.87598345]
[1756779924571,0.35,109630.0,109620.0,2.20598345]
[1756779924967,0.35,109630.0,109620.0,1.40128899]
[1756779925267,0.35,109630.0,109620.0,1.87598345]
[1756779925464,0.35,109630.0,109620.0,2.20598345]
[1756779925665,0.35,109630.0,109620.0,2.78454638]
[1756779925868,0.35,109630.0,109620.0,2.54719915]
[1756779926268,0.35,109630.0,109620.0,2.45598345]
[1756779926872,0.05257,109630.0,109620.0,2.12598345]
[1756779927071,0.05257,109630.0,109620.0,2.12590345]
[1756779928070,0.05257,109630.0,109620.0,1.27810345]
[1756779928378,0.08736,109630.0,109620.0,1.27810345]
[1756779928574,0.08736,109630.0,109620.0,2.12590345]
[1756779929571,0.05257,109630.0,109620.0,2.12590345]
[1756779930075,0.11104,109630.0,109620.0,1.87586345]
[1756779930268,0.07625,109630.0,109620.0,1.87586345]
[1756779930768,0.07625,109630.0,109620.0,1.40116899]
[1756779931079,0.03,109630.0,109620.0,1.87586345]
[1756779933483,0.03,109630.0,109620.0,1.02810345]
[1756779933684,0.06479,109630.0,109620.0,1.87586345]
[1756779933982,0.06479,109630.0,109620.0,1.40116899]
[1756779934283,0.06479,109630.0,109620.0,1.87586345]
[1756779935079,0.03,109630.0,109620.0,1.87586345]
[1756779935979,0.06557,109630.0,109620.0,1.87582345]
[1756779936876,0.11219,109630.0,109620.0,0.55340899]
[1756779937177,0.11219,109630.0,109620.0,0.19260899]
[1756779937178,0.9399109,109630.0,109620.0,0.19260899]
[1756779937375,0.9399109,109630.0,109620.0,0.42995622]
[1756779937876,0.9399109,109630.0,109620.0,0.19260899]
[1756779938077,0.9399109,109630.0,109620.0,0.42995622]
[1756779938673,0.9399109,109630.0,109620.0,0.19260899]
[1756779939075,0.9409109,109630.0,109620.0,0.19160899]
[1756779939676,0.9409109,109630.0,109620.0,0.18760899]
[1756779939980,0.9409109,109630.0,109620.0,0.49975622]
[1756779940284,0.70356367,109630.0,109620.0,0.49975622]
[1756779940783,0.9409109,109630.0,109620.0,0.49975622]
[1756779941284,0.9409109,109630.0,109620.0,0.26240899]
[1756779941487,1.3017109,109630.0,109620.0,0.49975622]
[1756779941785,1.3017109,109630.0,109620.0,0.26240899]
[1756779942084,1.3017109,109630.0,109620.0,0.49975622]
[1756779942480,0.70356367,109630.0,109620.0,0.49975622]
[1756779942683,0.9409109,109630.0,109620.0,0.49975622]
[1756779943276,0.9409109,109630.0,109620.0,0.26240899]
[1756779943472,0.9399109,109630.0,109620.0,0.50175622]
[1756779943784,0.9399109,109630.0,109620.0,0.50275622]
[1756779943995,0.9399109,109630.0,109620.0,0.50075622]
[1756779944182,0.9399109,109630.0,109620.0,0.50275622]
[1756779945377,0.9399109,109630.0,109620.0,0.46810622]
[1756779945686,0.9399109,109630.0,109620.0,0.50318622]
[1756779946272,0.70256367,109630.0,109620.0,0.50318622]
[1756779946586,0.70256367,109630.0,109620.0,0.74053345]
[1756779946978,0.70256367,109630.0,109620.0,0.26583899]
[1756779947174,0.70256367,109630.0,109620.0,0.74053345]
[1756779947888,0.70256367,109630.0,109620.0,0.26583899]
[1756779948186,0.9399109,109630.0,109620.0,0.50318622]
[1756779948678,0.70256367,109630.0,109620.0,0.50318622]
[1756779948987,0.70256367,109630.0,109620.0,0.74053345]
[1756779949189,0.9399109,109630.0,109620.0,0.50318622]
[1756779949490,0.9399109,109630.0,109620.0,0.26583899]
[1756779949786,0.9399109,109630.0,109620.0,0.50318622]
[1756779949989,0.9399109,109630.0,109620.0,0.26583899]
[1756779950192,0.9399109,109630.0,109620.0,0.50318622]
[1756779952993,0.9399109,109630.0,109620.0,0.26583899]
[1756779953292,2.1497909,109630.0,109620.0,0.20781899]
[1756779953795,2.1497909,109630.0,109620.0,0.44516622]
[1756779954094,2.1497909,109630.0,109620.0,0.23131899]
[1756779957389,2.1497909,109630.0,109620.0,0.26639899]
[1756779957588,2.1497909,109630.0,109620.0,0.23131899]
[1756779958494,1.91244367,109630.0,109620.0,0.23131899]
[1756779958697,2.1497909,109630.0,109620.0,0.23131899]
[1756779959199,1.8997909,109630.0,109620.0,0.23131899]
[1756779959890,1.8997909,109630.0,109620.0,0.46866622]
[1756779960498,1.8997909,109630.0,109620.0,0.23131899]
[1756779960999,1.8997909,109630.0,109620.0,0.15651899]
[1756779961219,2.38713813,109630.0,109620.0,0.10955899]
[1756779961501,2.38713813,109630.0,109620.0,0.10855899]
[1756779961804,2.38713813,109630.0,109620.0,0.05344899]
[1756779962300,2.38813813,109630.0,109620.0,0.05144899]
[1756779963391,2.38813813,109630.0,109620.0,0.12624899]
[1756779966005,2.38813813,109630.0,109620.0,0.12168899]
[1756779966299,2.35256813,109630.0,109590.0,0.61850675]
[1756779966506,0.3608,109610.0,109600.0,0.08363]
[1756779966708,1.77590723,109610.0,109600.0,0.08363]
[1756779967196,1.77590723,109610.0,109600.0,0.08819]
[1756779967787,1.77590723,109610.0,109600.0,0.05434]
[1756779968399,1.77590723,109610.0,109600.0,0.09119]
[1756779968710,1.78521016,109610.0,109600.0,0.09119]
[1756779969007,1.78521016,109610.0,109600.0,0.08919]
[1756779969301,1.78525016,109610.0,109600.0,0.08919]
[1756779969600,1.78525016,109610.0,109600.0,0.19118899]
[1756779970204,0.93745016,109610.0,109600.0,0.19018899]
[1756779970506,0.93745016,109610.0,109600.0,0.92892345]
[1756779970507,0.33,109610.0,109600.0,0.92892345]
[1756779970695,1.1778,109610.0,109600.0,0.45422899]
[1756779970896,0.33,109610.0,109600.0,0.92892345]
[1756779971100,1.1778,109610.0,109600.0,0.69157622]
[1756779971902,1.41514723,109610.0,109600.0,0.69157622]
[1756779972205,1.41514723,109610.0,109600.0,0.69257622]
[1756779972506,1.41514723,109610.0,109600.0,0.69457622]
[1756779973001,0.33,109610.0,109600.0,0.69457622]
[1756779973199,1.41514723,109610.0,109600.0,0.69457622]
[1756779974007,1.41514723,109610.0,109600.0,0.69357622]
[1756779974198,1.41514723,109610.0,109600.0,0.69157622]
[1756779975106,1.42412463,109610.0,109600.0,0.69157622]
[1756779975606,1.42427243,109610.0,109600.0,0.45422899]
[1756779976105,1.41529503,109610.0,109600.0,0.45422899]
[1756779976503,0.56749503,109610.0,109600.0,0.45422899]
[1756779976705,1.1778,109610.0,109600.0,0.45422899]
[1756779977807,1.1778,109610.0,109600.0,0.45722899]
[1756779978400,1.41529503,109610.0,109600.0,0.45722899]
[1756779978904,1.42418131,109610.0,109600.0,0.45722899]
[1756779979311,1.18668628,109610.0,109600.0,0.45722899]
[1756779979496,1.42418131,109610.0,109600.0,0.45722899]
[1756779979994,1.18668628,109610.0,109600.0,0.45722899]
[1756779980198,1.42418131,109610.0,109600.0,0.45722899]
[1756779980507,1.41529503,109610.0,109600.0,0.45722899]
[1756779980904,1.41529503,109610.0,109600.0,0.45422899]
[1756779984808,1.78511253,109610.0,109600.0,0.45422899]
[1756779988215,1.80550062,109610.0,109600.0,0.45422899]
[1756779989506,1.80550062,109610.0,109600.0,0.40433899]
[1756779989714,1.80550062,109610.0,109600.0,0.10655899]
[1756779990910,2.05550062,109610.0,109600.0,0.10655899]
[1756779992617,2.05650062,109610.0,109600.0,0.10655899]
[1756779996112,2.05650062,109610.0,109600.0,0.08302959]
[1756780002208,2.29399565,109610.0,109590.0,0.02612]
[1756780002409,0.83579006,109600.0,109590.0,0.02612]
[1756780002611,1.16617815,109600.0,109590.0,0.02612]
[1756780004212,2.01397815,109600.0,109590.0,0.02612]
[1756780004922,2.01393884,109600.0,109590.0,0.02612]
[1756780005418,2.01393884,109600.0,109590.0,0.12811899]
[1756780006518,1.00219119,109600.0,109590.0,0.17562899]
[1756780006724,1.84999119,109600.0,109590.0,0.21239899]
[1756780008730,1.61249616,109600.0,109590.0,0.46239899]
[1756780009025,1.84999119,109600.0,109590.0,0.46239899]
[1756780009412,1.00219119,109600.0,109590.0,0.46239899]
[1756780009717,1.84999119,109600.0,109590.0,0.46239899]
[1756780010826,1.84999119,109600.0,109590.0,0.43627899]
[1756780013021,0.69114878,109600.0,109590.0,0.43627899]
[1756780013219,1.77640381,109600.0,109590.0,0.43627899]
[1756780015728,0.92864381,109600.0,109590.0,0.43627899]
[1756780015930,1.77640381,109600.0,109590.0,0.43627899]
[1756780017834,1.53890878,109600.0,109590.0,0.43627899]
[1756780018139,1.77640381,109600.0,109590.0,0.43627899]
[1756780018629,0.69114878,109600.0,109590.0,0.18627899]
[1756780018830,1.15772,109600.0,109590.0,0.18627899]
[1756780020127,1.15772,109600.0,109590.0,0.18827899]
[1756780020634,1.39521503,109600.0,109590.0,0.18827899]
[1756780021736,1.15768,109600.0,109590.0,0.18927899]
[1756780022233,0.31,109600.0,109590.0,0.78757402]
[1756780022436,1.15764,109600.0,109590.0,0.55007899]
[1756780022637,1.15764,109600.0,109590.0,0.42577402]
[1756780022836,1.15764,109600.0,109590.0,0.42677402]
[1756780023838,1.15764,109600.0,109590.0,0.18927899]
[1756780026739,1.15764,109600.0,109590.0,0.42677402]
[1756780026941,1.15764,109600.0,109590.0,0.18927899]
[1756780027135,1.15764,109600.0,109590.0,0.42677402]
[1756780027339,1.15764,109600.0,109590.0,0.18927899]
[1756780028230,1.15764,109600.0,109590.0,0.42677402]
[1756780028635,1.15764,109600.0,109590.0,0.78757402]
[1756780029942,0.31,109600.0,109590.0,0.80783005]
[1756780030236,1.15752,109600.0,109590.0,0.80783005]
[1756780031842,1.15752,109600.0,109590.0,0.81686366]
[1756780037539,0.31,109600.0,109590.0,1.38434919]
[1756780037938,0.31,109600.0,109590.0,1.14685891]
[1756780038339,0.31,109600.0,109590.0,0.81685891]
[1756780039648,0.12,109600.0,109590.0,0.81685891]
[1756780040145,0.12,109600.0,109590.0,0.88194508]
[1756780040333,0.12,109600.0,109590.0,1.11943536]
[1756780040536,0.12,109600.0,109590.0,1.45943536]
[1756780040736,0.23749028,109620.0,109600.0,0.01363]
[1756780041045,1.45473028,109620.0,109610.0,0.32007028]
[1756780042445,0.60749028,109620.0,109610.0,0.32007028]
[1756780042747,1.45573028,109620.0,109610.0,0.36902268]
[1756780042948,0.371,109620.0,109610.0,0.8045675]
[1756780043142,1.45569028,109620.0,109610.0,0.33498268]
[1756780043942,1.45569028,109620.0,109610.0,0.36902268]
[1756780044142,1.45569028,109620.0,109610.0,0.33498268]
[1756780044344,1.69318056,109620.0,109610.0,0.33498268]
[1756780044639,1.45469028,109620.0,109610.0,0.33498268]
[1756780045041,1.45469028,109620.0,109610.0,0.36902268]
[1756780045241,1.47470631,109620.0,109610.0,0.32007028]
[1756780045449,1.47470631,109620.0,109610.0,0.42206927]
[1756780049255,1.23721603,109620.0,109610.0,0.42206927]
[1756780049551,1.47470631,109620.0,109610.0,0.42206927]
[1756780050953,1.47470631,109620.0,109610.0,0.42662927]
[1756780051752,1.71219659,109620.0,109610.0,0.10655899]
[1756780051937,0.39001603,109620.0,109610.0,0.78742927]
[1756780052142,1.47442631,109620.0,109610.0,0.78742927]
[1756780052353,1.47442631,109620.0,109610.0,0.42662927]
[1756780052646,0.62750631,109620.0,109610.0,0.42662927]
[1756780052853,1.47442631,109620.0,109610.0,0.42662927]
[1756780053839,1.23693603,109620.0,109610.0,0.42662927]
[1756780054053,1.47442631,109620.0,109610.0,0.42662927]
[1756780054554,1.23685603,109620.0,109610.0,0.78742927]
[1756780055148,1.21684,109620.0,109610.0,0.83638167]
[1756780056548,1.2168,109620.0,109610.0,0.83638167]
[1756780057447,0.37,109620.0,109610.0,0.83638167]
[1756780057644,1.2168,109620.0,109610.0,0.83638167]
[1756780059451,0.37,109620.0,109610.0,0.83638167]
[1756780059952,0.37,109620.0,109610.0,0.78742927]
[1756780061054,0.37,109620.0,109610.0,1.63414927]
[1756780061254,0.37,109620.0,109610.0,1.63714927]
[1756780061556,0.37,109620.0,109610.0,2.20463955]
[1756780062949,0.37,109620.0,109610.0,2.45463955]
[1756780063156,0.37,109620.0,109610.0,1.67300572]
[1756780063348,0.37,109620.0,109610.0,2.51964572]
[1756780063948,1.08413028,109640.0,109610.0,2.59355868]
[1756780064149,1.41413028,109640.0,109630.0,0.3688277]
[1756780064347,0.56749028,109640.0,109630.0,0.3688277]
[1756780064556,0.33,109640.0,109630.0,0.7296277]
[1756780065255,0.33,109640.0,109630.0,1.67818669]
[1756780066358,0.33,109640.0,109630.0,1.68274669]
[1756780066759,0.33,109640.0,109630.0,1.92023697]
[1756780066945,0.33,109640.0,109630.0,2.01274669]
[1756780067148,0.33,109640.0,109630.0,2.01474669]
[1756780067349,0.331,109640.0,109630.0,1.68466669]
[1756780068151,0.33,109640.0,109630.0,1.69487419]
[1756780068458,0.33,109640.0,109630.0,1.72126419]
[1756780069654,0.33,109640.0,109630.0,0.87478419]
[1756780069862,0.33,109640.0,109630.0,1.72118419]
[1756780070861,0.33,109640.0,109630.0,1.95867447]
[1756780071256,0.33,109640.0,109630.0,1.72118419]
[1756780071657,0.33,109640.0,109630.0,2.06118419]
[1756780071862,0.33,109640.0,109630.0,2.32867447]
[1756780072061,0.33,109640.0,109630.0,2.26867447]
[1756780074161,0.33,109640.0,109630.0,2.51867447]
[1756780074460,1.207,109660.0,109650.0,0.09692]
[1756780074764,1.547,109660.0,109650.0,0.33441028]
[1756780074955,1.547,109660.0,109650.0,0.09692]
[1756780075354,1.547,109660.0,109650.0,0.43640927]
[1756780075664,1.78449028,109660.0,109650.0,0.43640927]
[1756780076460,1.78549028,109660.0,109650.0,0.43640927]
[1756780076861,1.548,109660.0,109650.0,0.43640927]
[1756780077065,1.78549028,109660.0,109650.0,0.43640927]
[1756780077265,1.78449028,109660.0,109650.0,0.43640927]
[1756780077460,0.34,109660.0,109650.0,1.28469955]
[1756780077662,0.08,109660.0,109650.0,1.90763425]
[1756780077868,0.08,109660.0,109650.0,1.94220425]
[1756780079163,0.08,109660.0,109650.0,1.69220425]
[1756780079362,0.08,109660.0,109650.0,0.84612425]
[1756780079661,0.08,109660.0,109650.0,1.69671425]
[1756780079859,0.31749028,109660.0,109650.0,1.64779927]
[1756780080064,0.08,109660.0,109650.0,1.64779927]
[1756780080271,0.23849028,109700.0,109660.0,0.03457]
[1756780080462,0.23749028,109680.0,109670.0,0.63286028]
[1756780080660,0.79498056,109680.0,109670.0,0.08235]
[1756780080856,1.04498056,109680.0,109670.0,0.08235]
[1756780081060,1.04498056,109680.0,109670.0,0.04778]
[1756780081369,1.40578056,109680.0,109670.0,0.08235]
[1756780081668,1.16829028,109680.0,109670.0,0.08235]
[1756780081867,1.16829028,109680.0,109670.0,0.31984028]
[1756780082274,0.80749028,109680.0,109670.0,0.31984028]
[1756780082568,0.57,109680.0,109670.0,0.34629028]
[1756780082760,0.80749028,109680.0,109670.0,0.34629028]
[1756780083162,0.80949028,109680.0,109670.0,0.34629028]
[1756780085266,0.80949028,109680.0,109670.0,0.44828927]
[1756780088075,0.572,109680.0,109670.0,0.44828927]
[1756780088274,0.80949028,109680.0,109670.0,0.44828927]
[1756780088966,0.572,109680.0,109670.0,0.44828927]
[1756780089166,0.80949028,109680.0,109670.0,0.44828927]
[1756780089378,0.572,109680.0,109670.0,0.44828927]
[1756780090968,0.572,109680.0,109670.0,0.80908927]
[1756780091575,0.322,109680.0,109670.0,0.80908927]
[1756780094076,0.322,109680.0,109670.0,1.65452927]
[1756780095274,0.34205623,109680.0,109670.0,1.65452927]
[1756780095874,0.34205623,109680.0,109670.0,1.66377805]
[1756780096075,0.322,109680.0,109670.0,1.66377805]
[1756780097175,0.322,109680.0,109670.0,0.80908927]
[1756780097476,0.322,109680.0,109670.0,0.8087475]
[1756780099468,0.322,109680.0,109670.0,0.8894762]
[1756780100681,0.002,109680.0,109670.0,0.8894762]
[1756780100977,0.002,109680.0,109670.0,0.8940262]
[1756780102276,0.02207239,109680.0,109670.0,0.8849014]
[1756780104282,0.02207239,109680.0,109670.0,0.64775289]
[1756780104583,0.02207239,109680.0,109670.0,0.8849014]
[1756780104880,0.02212663,109680.0,109670.0,0.8849014]
[1756780105283,0.002,109680.0,109670.0,0.8879014]
[1756780105575,0.8454,109690.0,109680.0,0.0808]
[1756780105882,0.86553253,109690.0,109680.0,0.0808]
[1756780107474,1.13553253,109690.0,109680.0,0.0828]
[1756780107676,1.69268104,109690.0,109680.0,0.0828]
[1756780108484,1.69268104,109690.0,109680.0,0.0838]
[1756780108886,1.37268104,109690.0,109680.0,0.0838]
[1756780109180,1.13553253,109690.0,109680.0,0.04818]
[1756780109385,1.71268104,109690.0,109680.0,0.04818]
[1756780109781,1.71268104,109690.0,109680.0,0.0838]
[1756780109984,1.35268104,109690.0,109680.0,0.0838]
[1756780110184,1.68268104,109690.0,109680.0,0.0838]
[1756780110385,1.68268104,109690.0,109680.0,0.10499899]
[1756780111292,1.69268104,109690.0,109680.0,0.10499899]
[1756780112394,2.05348104,109690.0,109680.0,0.10499899]
[1756780117997,2.29062955,109690.0,109680.0,0.10499899]
[1756780118994,2.33967117,109690.0,109680.0,0.10499899]
[1756780119291,4.26671117,109690.0,109680.0,0.10499899]
[1756780119491,4.27671117,109690.0,109670.0,0.031]
[1756780119695,0.83509702,109680.0,109640.0,0.08212]
[1756780119895,0.59794851,109650.0,109640.0,0.08212]
[1756780120096,1.78276104,109650.0,109640.0,0.08212]
[1756780120297,1.76262851,109650.0,109640.0,0.08212]
[1756780121399,1.76262851,109650.0,109640.0,0.08412]
[1756780121596,1.46262851,109650.0,109640.0,0.08412]
[1756780122488,1.46262851,109650.0,109640.0,0.08512]
[1756780122685,1.4716747,109650.0,109640.0,0.18711899]
[1756780122995,1.4716747,109650.0,109640.0,0.10499899]
[1756780122996,1.8016747,109650.0,109640.0,0.10499899]
[1756780123197,0.97710467,109650.0,109640.0,0.12859899]
[1756780123499,1.79173639,109650.0,109640.0,0.15170899]
[1756780123692,1.79173639,109650.0,109640.0,0.10499899]
[1756780124298,1.7716347,109650.0,109640.0,0.10499899]
[1756780125699,1.7716347,109650.0,109640.0,0.12859899]
[1756780126702,1.84538929,109650.0,109640.0,0.12859899]
[1756780127195,1.84538929,109650.0,109640.0,0.10499899]
[1756780128396,2.0825378,109650.0,109640.0,0.10499899]
[1756780128601,1.86538659,109650.0,109640.0,0.10499899]
[1756780129298,0.78367808,109650.0,109640.0,0.18711899]
[1756780129502,1.84530929,109650.0,109640.0,0.18711899]
[1756780130603,1.89534929,109650.0,109640.0,0.18711899]
[1756780130904,1.89530929,109650.0,109640.0,0.18711899]
[1756780133394,1.89530929,109650.0,109640.0,0.18511899]
[1756780133595,1.89530929,109650.0,109640.0,0.18611899]
[1756780134005,1.89530929,109650.0,109640.0,0.18511899]
[1756780134909,1.89530929,109650.0,109640.0,0.14970899]
[1756780135213,2.40250095,109650.0,109640.0,0.10299899]
[1756780138820,1.55794095,109650.0,109640.0,0.10299899]
[1756780139020,2.40234095,109650.0,109640.0,0.10299899]
[1756780139222,2.15234095,109650.0,109640.0,0.10299899]
[1756780139723,1.30794095,109650.0,109640.0,0.10299899]
[1756780140122,2.15234095,109650.0,109640.0,0.10299899]
[1756780140313,2.15234095,109650.0,109640.0,0.14970899]
[1756780140715,0.83364393,109650.0,109640.0,0.18511899]
[1756780140916,1.07079244,109650.0,109640.0,0.18511899]
[1756780141217,1.91515244,109650.0,109640.0,0.18511899]
[1756780144328,1.91515244,109650.0,109640.0,0.14970899]
[1756780144826,1.91515244,109650.0,109640.0,0.18511899]
[1756780145621,2.15230095,109650.0,109640.0,0.10299899]
[1756780146130,4.33006095,109650.0,109640.0,0.10299899]
[1756780146324,4.61625108,109650.0,109630.0,0.00024]
[1756780146528,0.83509702,109640.0,109630.0,0.00024]
[1756780146829,1.22514017,109640.0,109630.0,0.00024]
[1756780147027,0.98799166,109640.0,109630.0,0.00024]
[1756780147626,0.98799166,109640.0,109630.0,0.00124]
[1756780148428,0.98799166,109640.0,109630.0,0.00224]
[1756780148728,0.98799166,109640.0,109630.0,0.00324]
[1756780149427,1.23799166,109640.0,109630.0,0.10523899]
[1756780150716,2.08223166,109640.0,109630.0,0.10523899]
[1756780152830,2.08223166,109640.0,109630.0,0.10499899]
[1756780153830,2.08230415,109640.0,109630.0,0.10499899]
[1756780155632,2.08230415,109640.0,109630.0,0.12892899]
[1756780155823,2.08230415,109640.0,109630.0,0.15355899]
[1756780155824,2.08222415,109640.0,109630.0,0.15355899]